Workbook

Sheet Explanation
F2: Creating Optimal Portfolios Based on Web Data
G18: =TODAY() -> 2018-02-23

Sheet Stocks
A1: Stock symbols and names
A3: Symbol | B3: Name
A4: AAPL | B4: Apple Computer
A5: AXP | B5: American Express
A6: BA | B6: Boeing
A7: CAT | B7: Caterpillar
A8: CSCO | B8: Cisco Systems
A9: CVX | B9: Chevron
A10: DIS | B10: Disney
A11: F | B11: Ford
A12: FDX | B12: Federal Express
A13: GE | B13: General Electric
A14: GS | B14: Goldman Sachs Group
A15: GT | B15: Goodyear Tire & Rubber
A16: HD | B16: Home Depot
A17: HPQ | B17: Hewlett Packard
A18: IBM | B18: International Business Machines
A19: INTC | B19: Intel
A20: IP | B20: International Paper
A21: JNJ | B21: Johnson & Johnson
A22: JPM | B22: JP Morgan Chase
A23: KO | B23: Coca Cola
A24: MAT | B24: Mattel
A25: MCD | B25: McDonald's
A26: MMM | B26: 3M
A27: MO | B27: Altria Group | C27: (formerly Philip Morris)
A28: MRK | B28: Merck
A29: MSFT | B29: Microsoft
A30: NKE | B30: Nike
A31: PFE | B31: Pfizer
A32: PG | B32: Procter & Gamble
A33: T | B33: AT&T
A34: TRV | B34: Travelers Companies
A35: UNH | B35: UnitedHealth Group
A36: UTX | B36: United Technologies
A37: VZ | B37: Verizon Communications
A38: VZ | B38: Visa
A39: WMT | B39: Walmart
A40: XOM | B40: Exxon Mobil

Sheet ClosingPrices
A1: Date | B1: AAPL | C1: AXP | D1: BA
A2: 2018-02-23 | B2: 174.44 | C2: 97.71 | D2: 355.92
A3: 2018-02-22 | B3: 172.50 | C3: 97.35 | D3: 355.92
A4: 2018-02-21 | B4: 171.07 | C4: 97.50 | D4: 352.37
A5: 2018-02-20 | B5: 171.85 | C5: 97.19 | D5: 353.35
A6: 2018-02-16 | B6: 172.43 | C6: 96.79 | D6: 355.04
A7: 2018-02-15 | B7: 172.99 | C7: 96.56 | D7: 356.46
A8: 2018-02-14 | B8: 167.37 | C8: 96.23 | D8: 344.85
A9: 2018-02-13 | B9: 164.34 | C9: 94.56 | D9: 343.16
A10: 2018-02-12 | B10: 162.71 | C10: 94.70 | D10: 343.80
A11: 2018-02-09 | B11: 156.41 | C11: 91.72 | D11: 332.83
A12: 2018-02-08 | B12: 154.52 | C12: 88.34 | D12: 329.66
A13: 2018-02-07 | B13: 158.89 | C13: 93.61 | D13: 346.41
A14: 2018-02-06 | B14: 162.37 | C14: 94.18 | D14: 339.24
A15: 2018-02-05 | B15: 155.85 | C15: 92.01 | D15: 327.26
A16: 2018-02-02 | B16: 159.85 | C16: 96.68 | D16: 347.20
A17: 2018-02-01 | B17: 167.10 | C17: 100.00 | D17: 355.19
A18: 2018-01-31 | B18: 166.75 | C18: 99.40 | D18: 352.63
A19: 2018-01-30 | B19: 166.29 | C19: 98.71 | D19: 336.05
A20: 2018-01-29 | B20: 167.28 | C20: 99.41 | D20: 339.15
A21: 2018-01-26 | B21: 170.81 | C21: 99.63 | D21: 341.53
A22: 2018-01-25 | B22: 170.42 | C22: 99.69 | D22: 341.42
A23: 2018-01-24 | B23: 173.51 | C23: 99.30 | D23: 333.05
A24: 2018-01-23 | B24: 176.32 | C24: 97.98 | D24: 333.94
A25: 2018-01-22 | B25: 176.28 | C25: 98.32 | D25: 336.34
A26: 2018-01-19 | B26: 177.74 | C26: 98.03 | D26: 336.07
A27: 2018-01-18 | B27: 178.53 | C27: 99.86 | D27: 338.49
A28: 2018-01-17 | B28: 178.37 | C28: 100.76 | D28: 349.29
A29: 2018-01-16 | B29: 175.47 | C29: 100.34 | D29: 333.51
A30: 2018-01-12 | B30: 176.37 | C30: 100.97 | D30: 334.56
A31: 2018-01-11 | B31: 174.57 | C31: 100.73 | D31: 326.51
A32: 2018-01-10 | B32: 173.58 | C32: 101.22 | D32: 318.69
A33: 2018-01-09 | B33: 173.62 | C33: 100.52 | D33: 316.87
A34: 2018-01-08 | B34: 173.64 | C34: 100.15 | D34: 308.63
A35: 2018-01-05 | B35: 174.29 | C35: 101.08 | D35: 307.32
A36: 2018-01-04 | B36: 172.33 | C36: 100.85 | D36: 295.21
A37: 2018-01-03 | B37: 171.53 | C37: 99.20 | D37: 296.34
A38: 2018-01-02 | B38: 171.56 | C38: 98.59 | D38: 295.38
A39: 2017-12-29 | B39: 168.54 | C39: 98.96 | D39: 293.46
A40: 2017-12-28 | B40: 170.39 | C40: 99.35 | D40: 294.89
A41: 2017-12-27 | B41: 169.91 | C41: 98.78 | D41: 294.17
A42: 2017-12-26 | B42: 169.88 | C42: 98.22 | D42: 293.91
A43: 2017-12-22 | B43: 174.30 | C43: 98.39 | D43: 293.65
A44: 2017-12-21 | B44: 174.30 | C44: 98.15 | D44: 293.58
A45: 2017-12-20 | B45: 173.64 | C45: 98.16 | D45: 296.44
A46: 2017-12-19 | B46: 173.83 | C46: 98.80 | D46: 295.79
A47: 2017-12-18 | B47: 175.70 | C47: 99.33 | D47: 294.69
A48: 2017-12-15 | B48: 173.26 | C48: 98.17 | D48: 292.50
A49: 2017-12-14 | B49: 171.52 | C49: 96.81 | D49: 292.44
A50: 2017-12-13 | B50: 171.57 | C50: 97.44 | D50: 290.41
A51: 2017-12-12 | B51: 171.00 | C51: 99.02 | D51: 288.52
A52: 2017-12-11 | B52: 171.97 | C52: 98.65 | D52: 281.77
A53: 2017-12-08 | B53: 168.68 | C53: 98.20 | D53: 284.50
A54: 2017-12-07 | B54: 168.63 | C54: 98.23 | D54: 280.58
A55: 2017-12-06 | B55: 168.32 | C55: 97.86 | D55: 276.90
A56: 2017-12-05 | B56: 168.95 | C56: 98.36 | D56: 274.19
A57: 2017-12-04 | B57: 169.11 | C57: 98.24 | D57: 276.60
A58: 2017-12-01 | B58: 170.36 | C58: 97.52 | D58: 270.05
A59: 2017-11-30 | B59: 171.15 | C59: 97.37 | D59: 275.44
A60: 2017-11-29 | B60: 168.79 | C60: 96.26 | D60: 267.98
A61: 2017-11-28 | B61: 172.37 | C61: 94.95 | D61: 266.67
A62: 2017-11-27 | B62: 173.38 | C62: 93.14 | D62: 264.28
A63: 2017-11-24 | B63: 174.26 | C63: 93.15 | D63: 264.57
A64: 2017-11-22 | B64: 174.25 | C64: 93.49 | D64: 263.85
A65: 2017-11-21 | B65: 172.44 | C65: 94.08 | D65: 265.68
A66: 2017-11-20 | B66: 169.29 | C66: 93.62 | D66: 263.33
A67: 2017-11-17 | B67: 169.46 | C67: 93.36 | D67: 260.97
A68: 2017-11-16 | B68: 170.41 | C68: 93.23 | D68: 262.40
A69: 2017-11-15 | B69: 168.39 | C69: 92.93 | D69: 261.57
A70: 2017-11-14 | B70: 170.64 | C70: 93.43 | D70: 260.47
A71: 2017-11-13 | B71: 173.26 | C71: 93.57 | D71: 261.13
A72: 2017-11-10 | B72: 173.96 | C72: 93.19 | D72: 259.57
A73: 2017-11-09 | B73: 174.54 | C73: 93.42 | D73: 261.41
A74: 2017-11-08 | B74: 174.90 | C74: 94.80 | D74: 262.85
A75: 2017-11-07 | B75: 173.48 | C75: 95.03 | D75: 263.41
A76: 2017-11-06 | B76: 172.92 | C76: 95.95 | D76: 261.37
A77: 2017-11-03 | B77: 171.18 | C77: 96.09 | D77: 259.07
A78: 2017-11-02 | B78: 166.83 | C78: 95.64 | D78: 259.94
A79: 2017-11-01 | B79: 165.62 | C79: 95.45 | D79: 255.85
A80: 2017-10-31 | B80: 167.75 | C80: 95.18 | D80: 255.34
A81: 2017-10-30 | B81: 165.45 | C81: 94.74 | D81: 256.60
A82: 2017-10-27 | B82: 161.81 | C82: 95.45 | D82: 253.84
A83: 2017-10-26 | B83: 156.21 | C83: 95.35 | D83: 256.62
A84: 2017-10-25 | B84: 155.22 | C84: 93.20 | D84: 255.78
A85: 2017-10-24 | B85: 155.90 | C85: 93.53 | D85: 263.28
A86: 2017-10-23 | B86: 154.98 | C86: 92.06 | D86: 259.64
A87: 2017-10-20 | B87: 155.06 | C87: 91.77 | D87: 262.04
A88: 2017-10-19 | B88: 154.79 | C88: 91.58 | D88: 256.39
A89: 2017-10-18 | B89: 158.54 | C89: 91.76 | D89: 257.38
A90: 2017-10-17 | B90: 159.25 | C90: 91.37 | D90: 255.97
A91: 2017-10-13 | B91: 155.79 | C91: 92.53 | D91: 258.07
A92: 2017-10-12 | B92: 154.81 | C92: 91.29 | D92: 259.23
A93: 2017-10-11 | B93: 155.36 | C93: 91.64 | D93: 258.76
A94: 2017-10-10 | B94: 154.71 | C94: 91.57 | D94: 258.26
A95: 2017-10-09 | B95: 154.65 | C95: 91.37 | D95: 255.75
A96: 2017-10-06 | B96: 154.12 | C96: 91.23 | D96: 255.93
A97: 2017-10-05 | B97: 154.20 | C97: 90.84 | D97: 256.24
A98: 2017-10-04 | B98: 152.31 | C98: 90.34 | D98: 253.14
A99: 2017-10-03 | B99: 153.30 | C99: 90.76 | D99: 252.85
A100: 2017-10-02 | B100: 152.64 | C100: 89.87 | D100: 253.37
A101: 2017-09-29 | B101: 152.94 | C101: 89.80 | D101: 251.61
A102: 2017-09-28 | B102: 152.11 | C102: 89.48 | D102: 251.67
A103: 2017-09-27 | B103: 153.05 | C103: 88.83 | D103: 252.67
A104: 2017-09-26 | B104: 151.97 | C104: 88.04 | D104: 251.10
A105: 2017-09-25 | B105: 149.40 | C105: 87.56 | D105: 251.72
A106: 2017-09-22 | B106: 150.73 | C106: 87.75 | D106: 253.83
A107: 2017-09-21 | B107: 152.22 | C107: 87.77 | D107: 253.42
A108: 2017-09-20 | B108: 154.88 | C108: 87.78 | D108: 252.85
A109: 2017-09-19 | B109: 157.52 | C109: 88.35 | D109: 249.88
A110: 2017-09-18 | B110: 157.46 | C110: 87.22 | D110: 250.49
A111: 2017-09-15 | B111: 158.66 | C111: 86.35 | D111: 246.45
A112: 2017-09-14 | B112: 157.07 | C112: 85.56 | D112: 242.72
A113: 2017-09-13 | B113: 158.43 | C113: 86.00 | D113: 239.45
A114: 2017-09-12 | B114: 159.63 | C114: 85.91 | D114: 238.12
A115: 2017-09-11 | B115: 160.27 | C115: 85.06 | D115: 238.13
A116: 2017-09-08 | B116: 157.42 | C116: 83.63 | D116: 236.34
A117: 2017-09-07 | B117: 160.03 | C117: 83.79 | D117: 233.89
A118: 2017-09-06 | B118: 160.67 | C118: 84.60 | D118: 232.22
A119: 2017-09-05 | B119: 160.84 | C119: 84.68 | D119: 234.57
A120: 2017-09-01 | B120: 162.80 | C120: 85.51 | D120: 237.87
A121: 2017-08-31 | B121: 162.75 | C121: 85.47 | D121: 237.21
A122: 2017-08-30 | B122: 162.10 | C122: 85.06 | D122: 238.00
A123: 2017-08-29 | B123: 161.67 | C123: 84.79 | D123: 238.03
A124: 2017-08-28 | B124: 160.24 | C124: 84.78 | D124: 234.75
A125: 2017-08-25 | B125: 158.64 | C125: 84.84 | D125: 233.48
A126: 2017-08-24 | B126: 158.06 | C126: 84.73 | D126: 236.30
A127: 2017-08-23 | B127: 158.76 | C127: 84.65 | D127: 235.65
A128: 2017-08-22 | B128: 158.56 | C128: 84.67 | D128: 237.30
A129: 2017-08-21 | B129: 156.01 | C129: 84.67 | D129: 233.27
A130: 2017-08-18 | B130: 156.30 | C130: 84.75 | D130: 233.36
A131: 2017-08-17 | B131: 156.66 | C131: 85.46 | D131: 233.18
A132: 2017-08-16 | B132: 159.72 | C132: 86.75 | D132: 235.16
A133: 2017-08-15 | B133: 160.37 | C133: 86.15 | D133: 236.72
A134: 2017-08-14 | B134: 158.63 | C134: 84.84 | D134: 234.72
A135: 2017-08-11 | B135: 156.28 | C135: 83.67 | D135: 232.48
A136: 2017-08-10 | B136: 154.14 | C136: 83.94 | D136: 230.50
A137: 2017-08-09 | B137: 159.21 | C137: 85.06 | D137: 231.91
A138: 2017-08-08 | B138: 158.24 | C138: 85.31 | D138: 235.64
A139: 2017-08-07 | B139: 156.98 | C139: 85.22 | D139: 236.36
A140: 2017-08-04 | B140: 154.59 | C140: 85.34 | D140: 233.88
A141: 2017-08-03 | B141: 153.78 | C141: 84.91 | D141: 234.41
A142: 2017-08-02 | B142: 155.33 | C142: 84.67 | D142: 234.12
A143: 2017-08-01 | B143: 148.32 | C143: 84.61 | D143: 235.58
A144: 2017-07-31 | B144: 147.02 | C144: 84.60 | D144: 238.56
A145: 2017-07-28 | B145: 147.78 | C145: 84.18 | D145: 237.39
A146: 2017-07-27 | B146: 148.83 | C146: 83.23 | D146: 237.12
A147: 2017-07-26 | B147: 151.69 | C147: 84.67 | D147: 229.69
A148: 2017-07-25 | B148: 150.98 | C148: 84.78 | D148: 209.04
A149: 2017-07-24 | B149: 150.34 | C149: 84.38 | D149: 208.76
A150: 2017-07-21 | B150: 148.54 | C150: 84.96 | D150: 208.72
A151: 2017-07-20 | B151: 148.61 | C151: 84.72 | D151: 206.89
A152: 2017-07-19 | B152: 149.28 | C152: 85.30 | D152: 207.48
A153: 2017-07-18 | B153: 148.35 | C153: 84.89 | D153: 204.89
A154: 2017-07-17 | B154: 147.84 | C154: 84.59 | D154: 205.63
A155: 2017-07-14 | B155: 147.32 | C155: 84.65 | D155: 205.15
A156: 2017-07-13 | B156: 146.07 | C156: 84.74 | D156: 202.91
A157: 2017-07-12 | B157: 144.06 | C157: 84.20 | D157: 203.12
A158: 2017-07-11 | B158: 143.85 | C158: 83.54 | D158: 202.95
A159: 2017-07-10 | B159: 143.39 | C159: 83.68 | D159: 200.68
A160: 2017-07-07 | B160: 142.52 | C160: 83.71 | D160: 199.11
A161: 2017-07-06 | B161: 141.09 | C161: 83.12 | D161: 198.24
A162: 2017-07-05 | B162: 142.43 | C162: 84.27 | D162: 198.56
A163: 2017-07-03 | B163: 141.85 | C163: 84.16 | D163: 195.39
A164: 2017-06-30 | B164: 142.36 | C164: 83.31 | D164: 194.57
A165: 2017-06-29 | B165: 142.03 | C165: 82.70 | D165: 194.28
A166: 2017-06-28 | B166: 144.15 | C166: 83.04 | D166: 196.41
A167: 2017-06-27 | B167: 142.08 | C167: 82.16 | D167: 195.69
A168: 2017-06-26 | B168: 144.14 | C168: 82.04 | D168: 196.76
A169: 2017-06-23 | B169: 144.60 | C169: 81.31 | D169: 198.97
A170: 2017-06-22 | B170: 143.95 | C170: 81.34 | D170: 196.23
A171: 2017-06-21 | B171: 144.19 | C171: 81.30 | D171: 195.96
A172: 2017-06-20 | B172: 143.34 | C172: 81.60 | D172: 195.14
A173: 2017-06-19 | B173: 144.66 | C173: 80.97 | D173: 195.87
A174: 2017-06-16 | B174: 140.63 | C174: 80.55 | D174: 193.28
A175: 2017-06-15 | B175: 142.63 | C175: 79.81 | D175: 192.30
A176: 2017-06-14 | B176: 143.49 | C176: 79.94 | D176: 189.28
A177: 2017-06-13 | B177: 144.90 | C177: 79.70 | D177: 188.01
A178: 2017-06-12 | B178: 143.75 | C178: 79.28 | D178: 186.94
A179: 2017-06-09 | B179: 147.27 | C179: 79.42 | D179: 186.97
A180: 2017-06-08 | B180: 153.21 | C180: 79.06 | D180: 186.87
A181: 2017-06-06 | B181: 152.67 | C181: 77.98 | D181: 183.74
A182: 2017-06-05 | B182: 152.16 | C182: 78.09 | D182: 185.91
A183: 2017-06-02 | B183: 153.66 | C183: 77.62 | D183: 187.17
A184: 2017-06-01 | B184: 151.42 | C184: 77.41 | D184: 184.30
A185: 2017-05-31 | B185: 151.00 | C185: 76.09 | D185: 184.61
A186: 2017-05-30 | B186: 151.90 | C186: 76.24 | D186: 183.87
A187: 2017-05-26 | B187: 151.84 | C187: 76.60 | D187: 183.59
A188: 2017-05-25 | B188: 152.10 | C188: 76.58 | D188: 184.06
A189: 2017-05-24 | B189: 151.58 | C189: 76.27 | D189: 182.27
A190: 2017-05-23 | B190: 152.03 | C190: 76.34 | D190: 180.54
A191: 2017-05-22 | B191: 152.22 | C191: 76.13 | D191: 180.71
A192: 2017-05-19 | B192: 151.30 | C192: 75.95 | D192: 177.85
A193: 2017-05-18 | B193: 150.78 | C193: 75.53 | D193: 174.54
A194: 2017-05-17 | B194: 148.52 | C194: 75.52 | D194: 175.90
A195: 2017-05-16 | B195: 153.68 | C195: 77.26 | D195: 179.76
A196: 2017-05-15 | B196: 153.91 | C196: 77.46 | D196: 179.45
A197: 2017-05-12 | B197: 154.30 | C197: 76.63 | D197: 180.30
A198: 2017-05-11 | B198: 152.18 | C198: 77.06 | D198: 180.98
A199: 2017-05-10 | B199: 150.87 | C199: 77.78 | D199: 180.23
A200: 2017-05-09 | B200: 151.59 | C200: 77.57 | D200: 182.50
... 51 more rows

Sheet Returns
A1: Date | B1: AAPL | C1: AXP | D1: BA
A2: 2018-02-23 | B2: =(ClosingPrices!B2-ClosingPrices!B3)/ClosingPrices!B3 -> 0.01124637681 | C2: =(ClosingPrices!C2-ClosingPrices!C3)/ClosingPrices!C3 -> 0.003697996918 | D2: =(ClosingPrices!D2-ClosingPrices!D3)/ClosingPrices!D3 -> 0
A3: 2018-02-22 | B3: =(ClosingPrices!B3-ClosingPrices!B4)/ClosingPrices!B4 -> 0.008359151225 | C3: =(ClosingPrices!C3-ClosingPrices!C4)/ClosingPrices!C4 -> -0.001538461538 | D3: =(ClosingPrices!D3-ClosingPrices!D4)/ClosingPrices!D4 -> 0.01007463745
A4: 2018-02-21 | B4: =(ClosingPrices!B4-ClosingPrices!B5)/ClosingPrices!B5 -> -0.004538842013 | C4: =(ClosingPrices!C4-ClosingPrices!C5)/ClosingPrices!C5 -> 0.003189628563 | D4: =(ClosingPrices!D4-ClosingPrices!D5)/ClosingPrices!D5 -> -0.002773454082
A5: 2018-02-20 | B5: =(ClosingPrices!B5-ClosingPrices!B6)/ClosingPrices!B6 -> -0.003363683814 | C5: =(ClosingPrices!C5-ClosingPrices!C6)/ClosingPrices!C6 -> 0.004132658332 | D5: =(ClosingPrices!D5-ClosingPrices!D6)/ClosingPrices!D6 -> -0.004760027039
A6: 2018-02-16 | B6: =(ClosingPrices!B6-ClosingPrices!B7)/ClosingPrices!B7 -> -0.00323718134 | C6: =(ClosingPrices!C6-ClosingPrices!C7)/ClosingPrices!C7 -> 0.002381938691 | D6: =(ClosingPrices!D6-ClosingPrices!D7)/ClosingPrices!D7 -> -0.003983616675
A7: 2018-02-15 | B7: =(ClosingPrices!B7-ClosingPrices!B8)/ClosingPrices!B8 -> 0.03357829958 | C7: =(ClosingPrices!C7-ClosingPrices!C8)/ClosingPrices!C8 -> 0.003429284007 | D7: =(ClosingPrices!D7-ClosingPrices!D8)/ClosingPrices!D8 -> 0.03366681166
A8: 2018-02-14 | B8: =(ClosingPrices!B8-ClosingPrices!B9)/ClosingPrices!B9 -> 0.01843738591 | C8: =(ClosingPrices!C8-ClosingPrices!C9)/ClosingPrices!C9 -> 0.0176607445 | D8: =(ClosingPrices!D8-ClosingPrices!D9)/ClosingPrices!D9 -> 0.004924816412
A9: 2018-02-13 | B9: =(ClosingPrices!B9-ClosingPrices!B10)/ClosingPrices!B10 -> 0.01001782312 | C9: =(ClosingPrices!C9-ClosingPrices!C10)/ClosingPrices!C10 -> -0.001478352693 | D9: =(ClosingPrices!D9-ClosingPrices!D10)/ClosingPrices!D10 -> -0.001861547411
A10: 2018-02-12 | B10: =(ClosingPrices!B10-ClosingPrices!B11)/ClosingPrices!B11 -> 0.04027875456 | C10: =(ClosingPrices!C10-ClosingPrices!C11)/ClosingPrices!C11 -> 0.03249018753 | D10: =(ClosingPrices!D10-ClosingPrices!D11)/ClosingPrices!D11 -> 0.03295976925
A11: 2018-02-09 | B11: =(ClosingPrices!B11-ClosingPrices!B12)/ClosingPrices!B12 -> 0.01223142635 | C11: =(ClosingPrices!C11-ClosingPrices!C12)/ClosingPrices!C12 -> 0.0382612633 | D11: =(ClosingPrices!D11-ClosingPrices!D12)/ClosingPrices!D12 -> 0.009615967967
A12: 2018-02-08 | B12: =(ClosingPrices!B12-ClosingPrices!B13)/ClosingPrices!B13 -> -0.02750330417 | C12: =(ClosingPrices!C12-ClosingPrices!C13)/ClosingPrices!C13 -> -0.05629740412 | D12: =(ClosingPrices!D12-ClosingPrices!D13)/ClosingPrices!D13 -> -0.04835310759
A13: 2018-02-07 | B13: =(ClosingPrices!B13-ClosingPrices!B14)/ClosingPrices!B14 -> -0.02143253064 | C13: =(ClosingPrices!C13-ClosingPrices!C14)/ClosingPrices!C14 -> -0.006052240391 | D13: =(ClosingPrices!D13-ClosingPrices!D14)/ClosingPrices!D14 -> 0.02113547931
A14: 2018-02-06 | B14: =(ClosingPrices!B14-ClosingPrices!B15)/ClosingPrices!B15 -> 0.04183509785 | C14: =(ClosingPrices!C14-ClosingPrices!C15)/ClosingPrices!C15 -> 0.023584393 | D14: =(ClosingPrices!D14-ClosingPrices!D15)/ClosingPrices!D15 -> 0.03660697916
A15: 2018-02-05 | B15: =(ClosingPrices!B15-ClosingPrices!B16)/ClosingPrices!B16 -> -0.02502345949 | C15: =(ClosingPrices!C15-ClosingPrices!C16)/ClosingPrices!C16 -> -0.04830368225 | D15: =(ClosingPrices!D15-ClosingPrices!D16)/ClosingPrices!D16 -> -0.05743087558
A16: 2018-02-02 | B16: =(ClosingPrices!B16-ClosingPrices!B17)/ClosingPrices!B17 -> -0.0433871933 | C16: =(ClosingPrices!C16-ClosingPrices!C17)/ClosingPrices!C17 -> -0.0332 | D16: =(ClosingPrices!D16-ClosingPrices!D17)/ClosingPrices!D17 -> -0.02249500267
A17: 2018-02-01 | B17: =(ClosingPrices!B17-ClosingPrices!B18)/ClosingPrices!B18 -> 0.002098950525 | C17: =(ClosingPrices!C17-ClosingPrices!C18)/ClosingPrices!C18 -> 0.006036217304 | D17: =(ClosingPrices!D17-ClosingPrices!D18)/ClosingPrices!D18 -> 0.007259733999
A18: 2018-01-31 | B18: =(ClosingPrices!B18-ClosingPrices!B19)/ClosingPrices!B19 -> 0.002766251729 | C18: =(ClosingPrices!C18-ClosingPrices!C19)/ClosingPrices!C19 -> 0.006990173235 | D18: =(ClosingPrices!D18-ClosingPrices!D19)/ClosingPrices!D19 -> 0.04933789615
A19: 2018-01-30 | B19: =(ClosingPrices!B19-ClosingPrices!B20)/ClosingPrices!B20 -> -0.005918220947 | C19: =(ClosingPrices!C19-ClosingPrices!C20)/ClosingPrices!C20 -> -0.007041545116 | D19: =(ClosingPrices!D19-ClosingPrices!D20)/ClosingPrices!D20 -> -0.009140498305
A20: 2018-01-29 | B20: =(ClosingPrices!B20-ClosingPrices!B21)/ClosingPrices!B21 -> -0.02066623734 | C20: =(ClosingPrices!C20-ClosingPrices!C21)/ClosingPrices!C21 -> -0.00220817023 | D20: =(ClosingPrices!D20-ClosingPrices!D21)/ClosingPrices!D21 -> -0.006968641115
A21: 2018-01-26 | B21: =(ClosingPrices!B21-ClosingPrices!B22)/ClosingPrices!B22 -> 0.002288463795 | C21: =(ClosingPrices!C21-ClosingPrices!C22)/ClosingPrices!C22 -> -0.0006018657839 | D21: =(ClosingPrices!D21-ClosingPrices!D22)/ClosingPrices!D22 -> 0.0003221838205
A22: 2018-01-25 | B22: =(ClosingPrices!B22-ClosingPrices!B23)/ClosingPrices!B23 -> -0.01780877183 | C22: =(ClosingPrices!C22-ClosingPrices!C23)/ClosingPrices!C23 -> 0.003927492447 | D22: =(ClosingPrices!D22-ClosingPrices!D23)/ClosingPrices!D23 -> 0.02513136166
A23: 2018-01-24 | B23: =(ClosingPrices!B23-ClosingPrices!B24)/ClosingPrices!B24 -> -0.01593693285 | C23: =(ClosingPrices!C23-ClosingPrices!C24)/ClosingPrices!C24 -> 0.01347213717 | D23: =(ClosingPrices!D23-ClosingPrices!D24)/ClosingPrices!D24 -> -0.002665149428
A24: 2018-01-23 | B24: =(ClosingPrices!B24-ClosingPrices!B25)/ClosingPrices!B25 -> 0.0002269117313 | C24: =(ClosingPrices!C24-ClosingPrices!C25)/ClosingPrices!C25 -> -0.003458096013 | D24: =(ClosingPrices!D24-ClosingPrices!D25)/ClosingPrices!D25 -> -0.007135636558
A25: 2018-01-22 | B25: =(ClosingPrices!B25-ClosingPrices!B26)/ClosingPrices!B26 -> -0.008214245527 | C25: =(ClosingPrices!C25-ClosingPrices!C26)/ClosingPrices!C26 -> 0.002958278078 | D25: =(ClosingPrices!D25-ClosingPrices!D26)/ClosingPrices!D26 -> 0.0008034040527
A26: 2018-01-19 | B26: =(ClosingPrices!B26-ClosingPrices!B27)/ClosingPrices!B27 -> -0.004425026606 | C26: =(ClosingPrices!C26-ClosingPrices!C27)/ClosingPrices!C27 -> -0.01832565592 | D26: =(ClosingPrices!D26-ClosingPrices!D27)/ClosingPrices!D27 -> -0.007149398801
A27: 2018-01-18 | B27: =(ClosingPrices!B27-ClosingPrices!B28)/ClosingPrices!B28 -> 0.0008970118293 | C27: =(ClosingPrices!C27-ClosingPrices!C28)/ClosingPrices!C28 -> -0.008932115919 | D27: =(ClosingPrices!D27-ClosingPrices!D28)/ClosingPrices!D28 -> -0.03091986601
A28: 2018-01-17 | B28: =(ClosingPrices!B28-ClosingPrices!B29)/ClosingPrices!B29 -> 0.01652704166 | C28: =(ClosingPrices!C28-ClosingPrices!C29)/ClosingPrices!C29 -> 0.004185768387 | D28: =(ClosingPrices!D28-ClosingPrices!D29)/ClosingPrices!D29 -> 0.04731492309
A29: 2018-01-16 | B29: =(ClosingPrices!B29-ClosingPrices!B30)/ClosingPrices!B30 -> -0.005102908658 | C29: =(ClosingPrices!C29-ClosingPrices!C30)/ClosingPrices!C30 -> -0.006239477072 | D29: =(ClosingPrices!D29-ClosingPrices!D30)/ClosingPrices!D30 -> -0.003138450502
A30: 2018-01-12 | B30: =(ClosingPrices!B30-ClosingPrices!B31)/ClosingPrices!B31 -> 0.01031105001 | C30: =(ClosingPrices!C30-ClosingPrices!C31)/ClosingPrices!C31 -> 0.002382606969 | D30: =(ClosingPrices!D30-ClosingPrices!D31)/ClosingPrices!D31 -> 0.02465468133
A31: 2018-01-11 | B31: =(ClosingPrices!B31-ClosingPrices!B32)/ClosingPrices!B32 -> 0.005703422053 | C31: =(ClosingPrices!C31-ClosingPrices!C32)/ClosingPrices!C32 -> -0.004840940526 | D31: =(ClosingPrices!D31-ClosingPrices!D32)/ClosingPrices!D32 -> 0.02453795224
A32: 2018-01-10 | B32: =(ClosingPrices!B32-ClosingPrices!B33)/ClosingPrices!B33 -> -0.0002303882041 | C32: =(ClosingPrices!C32-ClosingPrices!C33)/ClosingPrices!C33 -> 0.006963788301 | D32: =(ClosingPrices!D32-ClosingPrices!D33)/ClosingPrices!D33 -> 0.005743680374
A33: 2018-01-09 | B33: =(ClosingPrices!B33-ClosingPrices!B34)/ClosingPrices!B34 -> -0.0001151808339 | C33: =(ClosingPrices!C33-ClosingPrices!C34)/ClosingPrices!C34 -> 0.003694458313 | D33: =(ClosingPrices!D33-ClosingPrices!D34)/ClosingPrices!D34 -> 0.02669863591
A34: 2018-01-08 | B34: =(ClosingPrices!B34-ClosingPrices!B35)/ClosingPrices!B35 -> -0.00372941649 | C34: =(ClosingPrices!C34-ClosingPrices!C35)/ClosingPrices!C35 -> -0.009200633162 | D34: =(ClosingPrices!D34-ClosingPrices!D35)/ClosingPrices!D35 -> 0.004262657816
A35: 2018-01-05 | B35: =(ClosingPrices!B35-ClosingPrices!B36)/ClosingPrices!B36 -> 0.01137352753 | C35: =(ClosingPrices!C35-ClosingPrices!C36)/ClosingPrices!C36 -> 0.002280614774 | D35: =(ClosingPrices!D35-ClosingPrices!D36)/ClosingPrices!D36 -> 0.04102164561
A36: 2018-01-04 | B36: =(ClosingPrices!B36-ClosingPrices!B37)/ClosingPrices!B37 -> 0.004663907188 | C36: =(ClosingPrices!C36-ClosingPrices!C37)/ClosingPrices!C37 -> 0.01663306452 | D36: =(ClosingPrices!D36-ClosingPrices!D37)/ClosingPrices!D37 -> -0.003813187555
A37: 2018-01-03 | B37: =(ClosingPrices!B37-ClosingPrices!B38)/ClosingPrices!B38 -> -0.0001748659361 | C37: =(ClosingPrices!C37-ClosingPrices!C38)/ClosingPrices!C38 -> 0.006187240085 | D37: =(ClosingPrices!D37-ClosingPrices!D38)/ClosingPrices!D38 -> 0.003250050782
A38: 2018-01-02 | B38: =(ClosingPrices!B38-ClosingPrices!B39)/ClosingPrices!B39 -> 0.01791859499 | C38: =(ClosingPrices!C38-ClosingPrices!C39)/ClosingPrices!C39 -> -0.003738884398 | D38: =(ClosingPrices!D38-ClosingPrices!D39)/ClosingPrices!D39 -> 0.006542629319
A39: 2017-12-29 | B39: =(ClosingPrices!B39-ClosingPrices!B40)/ClosingPrices!B40 -> -0.01085744469 | C39: =(ClosingPrices!C39-ClosingPrices!C40)/ClosingPrices!C40 -> -0.003925515853 | D39: =(ClosingPrices!D39-ClosingPrices!D40)/ClosingPrices!D40 -> -0.004849265828
A40: 2017-12-28 | B40: =(ClosingPrices!B40-ClosingPrices!B41)/ClosingPrices!B41 -> 0.002825025013 | C40: =(ClosingPrices!C40-ClosingPrices!C41)/ClosingPrices!C41 -> 0.005770398866 | D40: =(ClosingPrices!D40-ClosingPrices!D41)/ClosingPrices!D41 -> 0.002447564334
A41: 2017-12-27 | B41: =(ClosingPrices!B41-ClosingPrices!B42)/ClosingPrices!B42 -> 0.0001765952437 | C41: =(ClosingPrices!C41-ClosingPrices!C42)/ClosingPrices!C42 -> 0.005701486459 | D41: =(ClosingPrices!D41-ClosingPrices!D42)/ClosingPrices!D42 -> 0.0008846245449
A42: 2017-12-26 | B42: =(ClosingPrices!B42-ClosingPrices!B43)/ClosingPrices!B43 -> -0.02535857717 | C42: =(ClosingPrices!C42-ClosingPrices!C43)/ClosingPrices!C43 -> -0.001727817868 | D42: =(ClosingPrices!D42-ClosingPrices!D43)/ClosingPrices!D43 -> 0.0008854077984
A43: 2017-12-22 | B43: =(ClosingPrices!B43-ClosingPrices!B44)/ClosingPrices!B44 -> 0 | C43: =(ClosingPrices!C43-ClosingPrices!C44)/ClosingPrices!C44 -> 0.002445236882 | D43: =(ClosingPrices!D43-ClosingPrices!D44)/ClosingPrices!D44 -> 0.0002384358608
A44: 2017-12-21 | B44: =(ClosingPrices!B44-ClosingPrices!B45)/ClosingPrices!B45 -> 0.003800967519 | C44: =(ClosingPrices!C44-ClosingPrices!C45)/ClosingPrices!C45 -> -0.0001018744906 | D44: =(ClosingPrices!D44-ClosingPrices!D45)/ClosingPrices!D45 -> -0.009647820807
A45: 2017-12-20 | B45: =(ClosingPrices!B45-ClosingPrices!B46)/ClosingPrices!B46 -> -0.001093021918 | C45: =(ClosingPrices!C45-ClosingPrices!C46)/ClosingPrices!C46 -> -0.006477732794 | D45: =(ClosingPrices!D45-ClosingPrices!D46)/ClosingPrices!D46 -> 0.002197504987
A46: 2017-12-19 | B46: =(ClosingPrices!B46-ClosingPrices!B47)/ClosingPrices!B47 -> -0.01064314172 | C46: =(ClosingPrices!C46-ClosingPrices!C47)/ClosingPrices!C47 -> -0.005335749522 | D46: =(ClosingPrices!D46-ClosingPrices!D47)/ClosingPrices!D47 -> 0.003732736096
A47: 2017-12-18 | B47: =(ClosingPrices!B47-ClosingPrices!B48)/ClosingPrices!B48 -> 0.01408288122 | C47: =(ClosingPrices!C47-ClosingPrices!C48)/ClosingPrices!C48 -> 0.01181623714 | D47: =(ClosingPrices!D47-ClosingPrices!D48)/ClosingPrices!D48 -> 0.007487179487
A48: 2017-12-15 | B48: =(ClosingPrices!B48-ClosingPrices!B49)/ClosingPrices!B49 -> 0.01014458955 | C48: =(ClosingPrices!C48-ClosingPrices!C49)/ClosingPrices!C49 -> 0.01404813552 | D48: =(ClosingPrices!D48-ClosingPrices!D49)/ClosingPrices!D49 -> 0.0002051702913
A49: 2017-12-14 | B49: =(ClosingPrices!B49-ClosingPrices!B50)/ClosingPrices!B50 -> -0.00029142624 | C49: =(ClosingPrices!C49-ClosingPrices!C50)/ClosingPrices!C50 -> -0.006465517241 | D49: =(ClosingPrices!D49-ClosingPrices!D50)/ClosingPrices!D50 -> 0.00699011742
A50: 2017-12-13 | B50: =(ClosingPrices!B50-ClosingPrices!B51)/ClosingPrices!B51 -> 0.003333333333 | C50: =(ClosingPrices!C50-ClosingPrices!C51)/ClosingPrices!C51 -> -0.01595637245 | D50: =(ClosingPrices!D50-ClosingPrices!D51)/ClosingPrices!D51 -> 0.006550672397
A51: 2017-12-12 | B51: =(ClosingPrices!B51-ClosingPrices!B52)/ClosingPrices!B52 -> -0.005640518695 | C51: =(ClosingPrices!C51-ClosingPrices!C52)/ClosingPrices!C52 -> 0.003750633553 | D51: =(ClosingPrices!D51-ClosingPrices!D52)/ClosingPrices!D52 -> 0.02395570856
A52: 2017-12-11 | B52: =(ClosingPrices!B52-ClosingPrices!B53)/ClosingPrices!B53 -> 0.019504387 | C52: =(ClosingPrices!C52-ClosingPrices!C53)/ClosingPrices!C53 -> 0.004582484725 | D52: =(ClosingPrices!D52-ClosingPrices!D53)/ClosingPrices!D53 -> -0.009595782074
A53: 2017-12-08 | B53: =(ClosingPrices!B53-ClosingPrices!B54)/ClosingPrices!B54 -> 0.0002965071458 | C53: =(ClosingPrices!C53-ClosingPrices!C54)/ClosingPrices!C54 -> -0.0003054056805 | D53: =(ClosingPrices!D53-ClosingPrices!D54)/ClosingPrices!D54 -> 0.01397105995
A54: 2017-12-07 | B54: =(ClosingPrices!B54-ClosingPrices!B55)/ClosingPrices!B55 -> 0.001841730038 | C54: =(ClosingPrices!C54-ClosingPrices!C55)/ClosingPrices!C55 -> 0.003780911506 | D54: =(ClosingPrices!D54-ClosingPrices!D55)/ClosingPrices!D55 -> 0.01328999639
A55: 2017-12-06 | B55: =(ClosingPrices!B55-ClosingPrices!B56)/ClosingPrices!B56 -> -0.00372891388 | C55: =(ClosingPrices!C55-ClosingPrices!C56)/ClosingPrices!C56 -> -0.005083367222 | D55: =(ClosingPrices!D55-ClosingPrices!D56)/ClosingPrices!D56 -> 0.009883657318
A56: 2017-12-05 | B56: =(ClosingPrices!B56-ClosingPrices!B57)/ClosingPrices!B57 -> -0.000946129738 | C56: =(ClosingPrices!C56-ClosingPrices!C57)/ClosingPrices!C57 -> 0.001221498371 | D56: =(ClosingPrices!D56-ClosingPrices!D57)/ClosingPrices!D57 -> -0.008712942878
A57: 2017-12-04 | B57: =(ClosingPrices!B57-ClosingPrices!B58)/ClosingPrices!B58 -> -0.007337403146 | C57: =(ClosingPrices!C57-ClosingPrices!C58)/ClosingPrices!C58 -> 0.007383100902 | D57: =(ClosingPrices!D57-ClosingPrices!D58)/ClosingPrices!D58 -> 0.02425476764
A58: 2017-12-01 | B58: =(ClosingPrices!B58-ClosingPrices!B59)/ClosingPrices!B59 -> -0.004615834064 | C58: =(ClosingPrices!C58-ClosingPrices!C59)/ClosingPrices!C59 -> 0.001540515559 | D58: =(ClosingPrices!D58-ClosingPrices!D59)/ClosingPrices!D59 -> -0.0195686901
A59: 2017-11-30 | B59: =(ClosingPrices!B59-ClosingPrices!B60)/ClosingPrices!B60 -> 0.01398187096 | C59: =(ClosingPrices!C59-ClosingPrices!C60)/ClosingPrices!C60 -> 0.01153126948 | D59: =(ClosingPrices!D59-ClosingPrices!D60)/ClosingPrices!D60 -> 0.02783789835
A60: 2017-11-29 | B60: =(ClosingPrices!B60-ClosingPrices!B61)/ClosingPrices!B61 -> -0.0207692754 | C60: =(ClosingPrices!C60-ClosingPrices!C61)/ClosingPrices!C61 -> 0.01379673512 | D60: =(ClosingPrices!D60-ClosingPrices!D61)/ClosingPrices!D61 -> 0.004912438595
A61: 2017-11-28 | B61: =(ClosingPrices!B61-ClosingPrices!B62)/ClosingPrices!B62 -> -0.005825354712 | C61: =(ClosingPrices!C61-ClosingPrices!C62)/ClosingPrices!C62 -> 0.01943311145 | D61: =(ClosingPrices!D61-ClosingPrices!D62)/ClosingPrices!D62 -> 0.009043438777
A62: 2017-11-27 | B62: =(ClosingPrices!B62-ClosingPrices!B63)/ClosingPrices!B63 -> -0.005049925399 | C62: =(ClosingPrices!C62-ClosingPrices!C63)/ClosingPrices!C63 -> -0.0001073537305 | D62: =(ClosingPrices!D62-ClosingPrices!D63)/ClosingPrices!D63 -> -0.00109611823
A63: 2017-11-24 | B63: =(ClosingPrices!B63-ClosingPrices!B64)/ClosingPrices!B64 -> 5.738880918e-05 | C63: =(ClosingPrices!C63-ClosingPrices!C64)/ClosingPrices!C64 -> -0.003636752594 | D63: =(ClosingPrices!D63-ClosingPrices!D64)/ClosingPrices!D64 -> 0.002728823195
A64: 2017-11-22 | B64: =(ClosingPrices!B64-ClosingPrices!B65)/ClosingPrices!B65 -> 0.01049640455 | C64: =(ClosingPrices!C64-ClosingPrices!C65)/ClosingPrices!C65 -> -0.006271258503 | D64: =(ClosingPrices!D64-ClosingPrices!D65)/ClosingPrices!D65 -> -0.006887985547
A65: 2017-11-21 | B65: =(ClosingPrices!B65-ClosingPrices!B66)/ClosingPrices!B66 -> 0.01860712387 | C65: =(ClosingPrices!C65-ClosingPrices!C66)/ClosingPrices!C66 -> 0.004913480026 | D65: =(ClosingPrices!D65-ClosingPrices!D66)/ClosingPrices!D66 -> 0.008924163597
A66: 2017-11-20 | B66: =(ClosingPrices!B66-ClosingPrices!B67)/ClosingPrices!B67 -> -0.001003186593 | C66: =(ClosingPrices!C66-ClosingPrices!C67)/ClosingPrices!C67 -> 0.002784918595 | D66: =(ClosingPrices!D66-ClosingPrices!D67)/ClosingPrices!D67 -> 0.00904318504
A67: 2017-11-17 | B67: =(ClosingPrices!B67-ClosingPrices!B68)/ClosingPrices!B68 -> -0.005574790212 | C67: =(ClosingPrices!C67-ClosingPrices!C68)/ClosingPrices!C68 -> 0.001394400944 | D67: =(ClosingPrices!D67-ClosingPrices!D68)/ClosingPrices!D68 -> -0.005449695122
A68: 2017-11-16 | B68: =(ClosingPrices!B68-ClosingPrices!B69)/ClosingPrices!B69 -> 0.01199596176 | C68: =(ClosingPrices!C68-ClosingPrices!C69)/ClosingPrices!C69 -> 0.003228236307 | D68: =(ClosingPrices!D68-ClosingPrices!D69)/ClosingPrices!D69 -> 0.003173146768
A69: 2017-11-15 | B69: =(ClosingPrices!B69-ClosingPrices!B70)/ClosingPrices!B70 -> -0.01318565401 | C69: =(ClosingPrices!C69-ClosingPrices!C70)/ClosingPrices!C70 -> -0.005351600128 | D69: =(ClosingPrices!D69-ClosingPrices!D70)/ClosingPrices!D70 -> 0.004223135102
A70: 2017-11-14 | B70: =(ClosingPrices!B70-ClosingPrices!B71)/ClosingPrices!B71 -> -0.01512178229 | C70: =(ClosingPrices!C70-ClosingPrices!C71)/ClosingPrices!C71 -> -0.001496206049 | D70: =(ClosingPrices!D70-ClosingPrices!D71)/ClosingPrices!D71 -> -0.002527476736
A71: 2017-11-13 | B71: =(ClosingPrices!B71-ClosingPrices!B72)/ClosingPrices!B72 -> -0.004023913543 | C71: =(ClosingPrices!C71-ClosingPrices!C72)/ClosingPrices!C72 -> 0.004077690739 | D71: =(ClosingPrices!D71-ClosingPrices!D72)/ClosingPrices!D72 -> 0.006009939515
A72: 2017-11-10 | B72: =(ClosingPrices!B72-ClosingPrices!B73)/ClosingPrices!B73 -> -0.003323020511 | C72: =(ClosingPrices!C72-ClosingPrices!C73)/ClosingPrices!C73 -> -0.002461999572 | D72: =(ClosingPrices!D72-ClosingPrices!D73)/ClosingPrices!D73 -> -0.007038751387
A73: 2017-11-09 | B73: =(ClosingPrices!B73-ClosingPrices!B74)/ClosingPrices!B74 -> -0.002058319039 | C73: =(ClosingPrices!C73-ClosingPrices!C74)/ClosingPrices!C74 -> -0.01455696203 | D73: =(ClosingPrices!D73-ClosingPrices!D74)/ClosingPrices!D74 -> -0.005478409739
A74: 2017-11-08 | B74: =(ClosingPrices!B74-ClosingPrices!B75)/ClosingPrices!B75 -> 0.0081853816 | C74: =(ClosingPrices!C74-ClosingPrices!C75)/ClosingPrices!C75 -> -0.00242028833 | D74: =(ClosingPrices!D74-ClosingPrices!D75)/ClosingPrices!D75 -> -0.002125963327
A75: 2017-11-07 | B75: =(ClosingPrices!B75-ClosingPrices!B76)/ClosingPrices!B76 -> 0.003238491788 | C75: =(ClosingPrices!C75-ClosingPrices!C76)/ClosingPrices!C76 -> -0.009588327254 | D75: =(ClosingPrices!D75-ClosingPrices!D76)/ClosingPrices!D76 -> 0.007805027356
A76: 2017-11-06 | B76: =(ClosingPrices!B76-ClosingPrices!B77)/ClosingPrices!B77 -> 0.01016473887 | C76: =(ClosingPrices!C76-ClosingPrices!C77)/ClosingPrices!C77 -> -0.001456967426 | D76: =(ClosingPrices!D76-ClosingPrices!D77)/ClosingPrices!D77 -> 0.008877909445
A77: 2017-11-03 | B77: =(ClosingPrices!B77-ClosingPrices!B78)/ClosingPrices!B78 -> 0.02607444704 | C77: =(ClosingPrices!C77-ClosingPrices!C78)/ClosingPrices!C78 -> 0.004705144291 | D77: =(ClosingPrices!D77-ClosingPrices!D78)/ClosingPrices!D78 -> -0.003346926214
A78: 2017-11-02 | B78: =(ClosingPrices!B78-ClosingPrices!B79)/ClosingPrices!B79 -> 0.007305880932 | C78: =(ClosingPrices!C78-ClosingPrices!C79)/ClosingPrices!C79 -> 0.00199057098 | D78: =(ClosingPrices!D78-ClosingPrices!D79)/ClosingPrices!D79 -> 0.01598592926
A79: 2017-11-01 | B79: =(ClosingPrices!B79-ClosingPrices!B80)/ClosingPrices!B80 -> -0.01269746647 | C79: =(ClosingPrices!C79-ClosingPrices!C80)/ClosingPrices!C80 -> 0.002836730406 | D79: =(ClosingPrices!D79-ClosingPrices!D80)/ClosingPrices!D80 -> 0.001997336884
A80: 2017-10-31 | B80: =(ClosingPrices!B80-ClosingPrices!B81)/ClosingPrices!B81 -> 0.01390148081 | C80: =(ClosingPrices!C80-ClosingPrices!C81)/ClosingPrices!C81 -> 0.004644289635 | D80: =(ClosingPrices!D80-ClosingPrices!D81)/ClosingPrices!D81 -> -0.004910366329
A81: 2017-10-30 | B81: =(ClosingPrices!B81-ClosingPrices!B82)/ClosingPrices!B82 -> 0.02249551944 | C81: =(ClosingPrices!C81-ClosingPrices!C82)/ClosingPrices!C82 -> -0.00743844945 | D81: =(ClosingPrices!D81-ClosingPrices!D82)/ClosingPrices!D82 -> 0.01087299086
A82: 2017-10-27 | B82: =(ClosingPrices!B82-ClosingPrices!B83)/ClosingPrices!B83 -> 0.03584917739 | C82: =(ClosingPrices!C82-ClosingPrices!C83)/ClosingPrices!C83 -> 0.001048767698 | D82: =(ClosingPrices!D82-ClosingPrices!D83)/ClosingPrices!D83 -> -0.01083313849
A83: 2017-10-26 | B83: =(ClosingPrices!B83-ClosingPrices!B84)/ClosingPrices!B84 -> 0.006378044066 | C83: =(ClosingPrices!C83-ClosingPrices!C84)/ClosingPrices!C84 -> 0.02306866953 | D83: =(ClosingPrices!D83-ClosingPrices!D84)/ClosingPrices!D84 -> 0.00328407225
A84: 2017-10-25 | B84: =(ClosingPrices!B84-ClosingPrices!B85)/ClosingPrices!B85 -> -0.004361770366 | C84: =(ClosingPrices!C84-ClosingPrices!C85)/ClosingPrices!C85 -> -0.003528279696 | D84: =(ClosingPrices!D84-ClosingPrices!D85)/ClosingPrices!D85 -> -0.02848678213
A85: 2017-10-24 | B85: =(ClosingPrices!B85-ClosingPrices!B86)/ClosingPrices!B86 -> 0.005936249839 | C85: =(ClosingPrices!C85-ClosingPrices!C86)/ClosingPrices!C86 -> 0.01596784706 | D85: =(ClosingPrices!D85-ClosingPrices!D86)/ClosingPrices!D86 -> 0.01401941149
A86: 2017-10-23 | B86: =(ClosingPrices!B86-ClosingPrices!B87)/ClosingPrices!B87 -> -0.0005159293177 | C86: =(ClosingPrices!C86-ClosingPrices!C87)/ClosingPrices!C87 -> 0.003160074098 | D86: =(ClosingPrices!D86-ClosingPrices!D87)/ClosingPrices!D87 -> -0.009158907037
A87: 2017-10-20 | B87: =(ClosingPrices!B87-ClosingPrices!B88)/ClosingPrices!B88 -> 0.001744298727 | C87: =(ClosingPrices!C87-ClosingPrices!C88)/ClosingPrices!C88 -> 0.002074688797 | D87: =(ClosingPrices!D87-ClosingPrices!D88)/ClosingPrices!D88 -> 0.0220367409
A88: 2017-10-19 | B88: =(ClosingPrices!B88-ClosingPrices!B89)/ClosingPrices!B89 -> -0.0236533367 | C88: =(ClosingPrices!C88-ClosingPrices!C89)/ClosingPrices!C89 -> -0.001961639058 | D88: =(ClosingPrices!D88-ClosingPrices!D89)/ClosingPrices!D89 -> -0.003846452716
A89: 2017-10-18 | B89: =(ClosingPrices!B89-ClosingPrices!B90)/ClosingPrices!B90 -> -0.004458398744 | C89: =(ClosingPrices!C89-ClosingPrices!C90)/ClosingPrices!C90 -> 0.004268359418 | D89: =(ClosingPrices!D89-ClosingPrices!D90)/ClosingPrices!D90 -> 0.005508458022
A90: 2017-10-17 | B90: =(ClosingPrices!B90-ClosingPrices!B91)/ClosingPrices!B91 -> 0.02220938443 | C90: =(ClosingPrices!C90-ClosingPrices!C91)/ClosingPrices!C91 -> -0.01253647466 | D90: =(ClosingPrices!D90-ClosingPrices!D91)/ClosingPrices!D91 -> -0.008137327082
A91: 2017-10-13 | B91: =(ClosingPrices!B91-ClosingPrices!B92)/ClosingPrices!B92 -> 0.006330340417 | C91: =(ClosingPrices!C91-ClosingPrices!C92)/ClosingPrices!C92 -> 0.01358308687 | D91: =(ClosingPrices!D91-ClosingPrices!D92)/ClosingPrices!D92 -> -0.004474790726
A92: 2017-10-12 | B92: =(ClosingPrices!B92-ClosingPrices!B93)/ClosingPrices!B93 -> -0.003540164779 | C92: =(ClosingPrices!C92-ClosingPrices!C93)/ClosingPrices!C93 -> -0.003819292885 | D92: =(ClosingPrices!D92-ClosingPrices!D93)/ClosingPrices!D93 -> 0.001816354923
A93: 2017-10-11 | B93: =(ClosingPrices!B93-ClosingPrices!B94)/ClosingPrices!B94 -> 0.004201409088 | C93: =(ClosingPrices!C93-ClosingPrices!C94)/ClosingPrices!C94 -> 0.000764442503 | D93: =(ClosingPrices!D93-ClosingPrices!D94)/ClosingPrices!D94 -> 0.001936033455
A94: 2017-10-10 | B94: =(ClosingPrices!B94-ClosingPrices!B95)/ClosingPrices!B95 -> 0.0003879728419 | C94: =(ClosingPrices!C94-ClosingPrices!C95)/ClosingPrices!C95 -> 0.002188902266 | D94: =(ClosingPrices!D94-ClosingPrices!D95)/ClosingPrices!D95 -> 0.00981427175
A95: 2017-10-09 | B95: =(ClosingPrices!B95-ClosingPrices!B96)/ClosingPrices!B96 -> 0.003438878796 | C95: =(ClosingPrices!C95-ClosingPrices!C96)/ClosingPrices!C96 -> 0.001534582922 | D95: =(ClosingPrices!D95-ClosingPrices!D96)/ClosingPrices!D96 -> -0.0007033173133
A96: 2017-10-06 | B96: =(ClosingPrices!B96-ClosingPrices!B97)/ClosingPrices!B97 -> -0.0005188067445 | C96: =(ClosingPrices!C96-ClosingPrices!C97)/ClosingPrices!C97 -> 0.00429326288 | D96: =(ClosingPrices!D96-ClosingPrices!D97)/ClosingPrices!D97 -> -0.001209803309
A97: 2017-10-05 | B97: =(ClosingPrices!B97-ClosingPrices!B98)/ClosingPrices!B98 -> 0.0124089029 | C97: =(ClosingPrices!C97-ClosingPrices!C98)/ClosingPrices!C98 -> 0.00553464689 | D97: =(ClosingPrices!D97-ClosingPrices!D98)/ClosingPrices!D98 -> 0.01224618788
A98: 2017-10-04 | B98: =(ClosingPrices!B98-ClosingPrices!B99)/ClosingPrices!B99 -> -0.006457925636 | C98: =(ClosingPrices!C98-ClosingPrices!C99)/ClosingPrices!C99 -> -0.004627589246 | D98: =(ClosingPrices!D98-ClosingPrices!D99)/ClosingPrices!D99 -> 0.001146925054
A99: 2017-10-03 | B99: =(ClosingPrices!B99-ClosingPrices!B100)/ClosingPrices!B100 -> 0.004323899371 | C99: =(ClosingPrices!C99-ClosingPrices!C100)/ClosingPrices!C100 -> 0.009903193502 | D99: =(ClosingPrices!D99-ClosingPrices!D100)/ClosingPrices!D100 -> -0.002052334531
A100: 2017-10-02 | B100: =(ClosingPrices!B100-ClosingPrices!B101)/ClosingPrices!B101 -> -0.00196155355 | C100: =(ClosingPrices!C100-ClosingPrices!C101)/ClosingPrices!C101 -> 0.0007795100223 | D100: =(ClosingPrices!D100-ClosingPrices!D101)/ClosingPrices!D101 -> 0.006994952506
A101: 2017-09-29 | B101: =(ClosingPrices!B101-ClosingPrices!B102)/ClosingPrices!B102 -> 0.005456577477 | C101: =(ClosingPrices!C101-ClosingPrices!C102)/ClosingPrices!C102 -> 0.003576218149 | D101: =(ClosingPrices!D101-ClosingPrices!D102)/ClosingPrices!D102 -> -0.0002384074383
A102: 2017-09-28 | B102: =(ClosingPrices!B102-ClosingPrices!B103)/ClosingPrices!B103 -> -0.006141783731 | C102: =(ClosingPrices!C102-ClosingPrices!C103)/ClosingPrices!C103 -> 0.007317347743 | D102: =(ClosingPrices!D102-ClosingPrices!D103)/ClosingPrices!D103 -> -0.003957731428
A103: 2017-09-27 | B103: =(ClosingPrices!B103-ClosingPrices!B104)/ClosingPrices!B104 -> 0.007106665789 | C103: =(ClosingPrices!C103-ClosingPrices!C104)/ClosingPrices!C104 -> 0.008973194003 | D103: =(ClosingPrices!D103-ClosingPrices!D104)/ClosingPrices!D104 -> 0.006252489048
A104: 2017-09-26 | B104: =(ClosingPrices!B104-ClosingPrices!B105)/ClosingPrices!B105 -> 0.0172021419 | C104: =(ClosingPrices!C104-ClosingPrices!C105)/ClosingPrices!C105 -> 0.005481955231 | D104: =(ClosingPrices!D104-ClosingPrices!D105)/ClosingPrices!D105 -> -0.002463054187
A105: 2017-09-25 | B105: =(ClosingPrices!B105-ClosingPrices!B106)/ClosingPrices!B106 -> -0.008823724541 | C105: =(ClosingPrices!C105-ClosingPrices!C106)/ClosingPrices!C106 -> -0.002165242165 | D105: =(ClosingPrices!D105-ClosingPrices!D106)/ClosingPrices!D106 -> -0.008312650199
A106: 2017-09-22 | B106: =(ClosingPrices!B106-ClosingPrices!B107)/ClosingPrices!B107 -> -0.009788464065 | C106: =(ClosingPrices!C106-ClosingPrices!C107)/ClosingPrices!C107 -> -0.0002278682921 | D106: =(ClosingPrices!D106-ClosingPrices!D107)/ClosingPrices!D107 -> 0.001617867572
A107: 2017-09-21 | B107: =(ClosingPrices!B107-ClosingPrices!B108)/ClosingPrices!B108 -> -0.01717458678 | C107: =(ClosingPrices!C107-ClosingPrices!C108)/ClosingPrices!C108 -> -0.0001139211666 | D107: =(ClosingPrices!D107-ClosingPrices!D108)/ClosingPrices!D108 -> 0.002254300969
A108: 2017-09-20 | B108: =(ClosingPrices!B108-ClosingPrices!B109)/ClosingPrices!B109 -> -0.01675977654 | C108: =(ClosingPrices!C108-ClosingPrices!C109)/ClosingPrices!C109 -> -0.006451612903 | D108: =(ClosingPrices!D108-ClosingPrices!D109)/ClosingPrices!D109 -> 0.01188570514
A109: 2017-09-19 | B109: =(ClosingPrices!B109-ClosingPrices!B110)/ClosingPrices!B110 -> 0.0003810491553 | C109: =(ClosingPrices!C109-ClosingPrices!C110)/ClosingPrices!C110 -> 0.0129557441 | D109: =(ClosingPrices!D109-ClosingPrices!D110)/ClosingPrices!D110 -> -0.002435226955
A110: 2017-09-18 | B110: =(ClosingPrices!B110-ClosingPrices!B111)/ClosingPrices!B111 -> -0.007563342998 | C110: =(ClosingPrices!C110-ClosingPrices!C111)/ClosingPrices!C111 -> 0.01007527504 | D110: =(ClosingPrices!D110-ClosingPrices!D111)/ClosingPrices!D111 -> 0.01639277744
A111: 2017-09-15 | B111: =(ClosingPrices!B111-ClosingPrices!B112)/ClosingPrices!B112 -> 0.01012287515 | C111: =(ClosingPrices!C111-ClosingPrices!C112)/ClosingPrices!C112 -> 0.009233286583 | D111: =(ClosingPrices!D111-ClosingPrices!D112)/ClosingPrices!D112 -> 0.01536750165
A112: 2017-09-14 | B112: =(ClosingPrices!B112-ClosingPrices!B113)/ClosingPrices!B113 -> -0.008584232784 | C112: =(ClosingPrices!C112-ClosingPrices!C113)/ClosingPrices!C113 -> -0.00511627907 | D112: =(ClosingPrices!D112-ClosingPrices!D113)/ClosingPrices!D113 -> 0.01365629568
A113: 2017-09-13 | B113: =(ClosingPrices!B113-ClosingPrices!B114)/ClosingPrices!B114 -> -0.00751738395 | C113: =(ClosingPrices!C113-ClosingPrices!C114)/ClosingPrices!C114 -> 0.001047607962 | D113: =(ClosingPrices!D113-ClosingPrices!D114)/ClosingPrices!D114 -> 0.005585419116
A114: 2017-09-12 | B114: =(ClosingPrices!B114-ClosingPrices!B115)/ClosingPrices!B115 -> -0.003993261371 | C114: =(ClosingPrices!C114-ClosingPrices!C115)/ClosingPrices!C115 -> 0.009992946156 | D114: =(ClosingPrices!D114-ClosingPrices!D115)/ClosingPrices!D115 -> -4.19938689e-05
A115: 2017-09-11 | B115: =(ClosingPrices!B115-ClosingPrices!B116)/ClosingPrices!B116 -> 0.018104434 | C115: =(ClosingPrices!C115-ClosingPrices!C116)/ClosingPrices!C116 -> 0.01709912711 | D115: =(ClosingPrices!D115-ClosingPrices!D116)/ClosingPrices!D116 -> 0.007573834307
A116: 2017-09-08 | B116: =(ClosingPrices!B116-ClosingPrices!B117)/ClosingPrices!B117 -> -0.01630944198 | C116: =(ClosingPrices!C116-ClosingPrices!C117)/ClosingPrices!C117 -> -0.001909535744 | D116: =(ClosingPrices!D116-ClosingPrices!D117)/ClosingPrices!D117 -> 0.01047500962
A117: 2017-09-07 | B117: =(ClosingPrices!B117-ClosingPrices!B118)/ClosingPrices!B118 -> -0.003983319848 | C117: =(ClosingPrices!C117-ClosingPrices!C118)/ClosingPrices!C118 -> -0.009574468085 | D117: =(ClosingPrices!D117-ClosingPrices!D118)/ClosingPrices!D118 -> 0.007191456378
A118: 2017-09-06 | B118: =(ClosingPrices!B118-ClosingPrices!B119)/ClosingPrices!B119 -> -0.001056951007 | C118: =(ClosingPrices!C118-ClosingPrices!C119)/ClosingPrices!C119 -> -0.0009447331129 | D118: =(ClosingPrices!D118-ClosingPrices!D119)/ClosingPrices!D119 -> -0.01001833141
A119: 2017-09-05 | B119: =(ClosingPrices!B119-ClosingPrices!B120)/ClosingPrices!B120 -> -0.01203931204 | C119: =(ClosingPrices!C119-ClosingPrices!C120)/ClosingPrices!C120 -> -0.00970646708 | D119: =(ClosingPrices!D119-ClosingPrices!D120)/ClosingPrices!D120 -> -0.01387312398
A120: 2017-09-01 | B120: =(ClosingPrices!B120-ClosingPrices!B121)/ClosingPrices!B121 -> 0.0003072196621 | C120: =(ClosingPrices!C120-ClosingPrices!C121)/ClosingPrices!C121 -> 0.000468000468 | D120: =(ClosingPrices!D120-ClosingPrices!D121)/ClosingPrices!D121 -> 0.002782344758
A121: 2017-08-31 | B121: =(ClosingPrices!B121-ClosingPrices!B122)/ClosingPrices!B122 -> 0.00400987045 | C121: =(ClosingPrices!C121-ClosingPrices!C122)/ClosingPrices!C122 -> 0.004820126969 | D121: =(ClosingPrices!D121-ClosingPrices!D122)/ClosingPrices!D122 -> -0.003319327731
A122: 2017-08-30 | B122: =(ClosingPrices!B122-ClosingPrices!B123)/ClosingPrices!B123 -> 0.002659738974 | C122: =(ClosingPrices!C122-ClosingPrices!C123)/ClosingPrices!C123 -> 0.003184337776 | D122: =(ClosingPrices!D122-ClosingPrices!D123)/ClosingPrices!D123 -> -0.0001260345335
A123: 2017-08-29 | B123: =(ClosingPrices!B123-ClosingPrices!B124)/ClosingPrices!B124 -> 0.008924113829 | C123: =(ClosingPrices!C123-ClosingPrices!C124)/ClosingPrices!C124 -> 0.0001179523473 | D123: =(ClosingPrices!D123-ClosingPrices!D124)/ClosingPrices!D124 -> 0.01397231097
A124: 2017-08-28 | B124: =(ClosingPrices!B124-ClosingPrices!B125)/ClosingPrices!B125 -> 0.01008572869 | C124: =(ClosingPrices!C124-ClosingPrices!C125)/ClosingPrices!C125 -> -0.0007072135785 | D124: =(ClosingPrices!D124-ClosingPrices!D125)/ClosingPrices!D125 -> 0.005439438068
A125: 2017-08-25 | B125: =(ClosingPrices!B125-ClosingPrices!B126)/ClosingPrices!B126 -> 0.003669492598 | C125: =(ClosingPrices!C125-ClosingPrices!C126)/ClosingPrices!C126 -> 0.001298241473 | D125: =(ClosingPrices!D125-ClosingPrices!D126)/ClosingPrices!D126 -> -0.01193398223
A126: 2017-08-24 | B126: =(ClosingPrices!B126-ClosingPrices!B127)/ClosingPrices!B127 -> -0.004409171076 | C126: =(ClosingPrices!C126-ClosingPrices!C127)/ClosingPrices!C127 -> 0.0009450679268 | D126: =(ClosingPrices!D126-ClosingPrices!D127)/ClosingPrices!D127 -> 0.002758328029
A127: 2017-08-23 | B127: =(ClosingPrices!B127-ClosingPrices!B128)/ClosingPrices!B128 -> 0.00126135217 | C127: =(ClosingPrices!C127-ClosingPrices!C128)/ClosingPrices!C128 -> -0.0002362111728 | D127: =(ClosingPrices!D127-ClosingPrices!D128)/ClosingPrices!D128 -> -0.006953223767
A128: 2017-08-22 | B128: =(ClosingPrices!B128-ClosingPrices!B129)/ClosingPrices!B129 -> 0.01634510608 | C128: =(ClosingPrices!C128-ClosingPrices!C129)/ClosingPrices!C129 -> 0 | D128: =(ClosingPrices!D128-ClosingPrices!D129)/ClosingPrices!D129 -> 0.0172761178
A129: 2017-08-21 | B129: =(ClosingPrices!B129-ClosingPrices!B130)/ClosingPrices!B130 -> -0.00185540627 | C129: =(ClosingPrices!C129-ClosingPrices!C130)/ClosingPrices!C130 -> -0.0009439528024 | D129: =(ClosingPrices!D129-ClosingPrices!D130)/ClosingPrices!D130 -> -0.0003856702091
A130: 2017-08-18 | B130: =(ClosingPrices!B130-ClosingPrices!B131)/ClosingPrices!B131 -> -0.002297970126 | C130: =(ClosingPrices!C130-ClosingPrices!C131)/ClosingPrices!C131 -> -0.008307980342 | D130: =(ClosingPrices!D130-ClosingPrices!D131)/ClosingPrices!D131 -> 0.0007719358436
A131: 2017-08-17 | B131: =(ClosingPrices!B131-ClosingPrices!B132)/ClosingPrices!B132 -> -0.01915852742 | C131: =(ClosingPrices!C131-ClosingPrices!C132)/ClosingPrices!C132 -> -0.014870317 | D131: =(ClosingPrices!D131-ClosingPrices!D132)/ClosingPrices!D132 -> -0.008419799286
A132: 2017-08-16 | B132: =(ClosingPrices!B132-ClosingPrices!B133)/ClosingPrices!B133 -> -0.004053127143 | C132: =(ClosingPrices!C132-ClosingPrices!C133)/ClosingPrices!C133 -> 0.006964596634 | D132: =(ClosingPrices!D132-ClosingPrices!D133)/ClosingPrices!D133 -> -0.006590064211
A133: 2017-08-15 | B133: =(ClosingPrices!B133-ClosingPrices!B134)/ClosingPrices!B134 -> 0.01096892139 | C133: =(ClosingPrices!C133-ClosingPrices!C134)/ClosingPrices!C134 -> 0.0154408298 | D133: =(ClosingPrices!D133-ClosingPrices!D134)/ClosingPrices!D134 -> 0.008520790729
A134: 2017-08-14 | B134: =(ClosingPrices!B134-ClosingPrices!B135)/ClosingPrices!B135 -> 0.01503711287 | C134: =(ClosingPrices!C134-ClosingPrices!C135)/ClosingPrices!C135 -> 0.01398350663 | D134: =(ClosingPrices!D134-ClosingPrices!D135)/ClosingPrices!D135 -> 0.00963523744
A135: 2017-08-11 | B135: =(ClosingPrices!B135-ClosingPrices!B136)/ClosingPrices!B136 -> 0.01388348255 | C135: =(ClosingPrices!C135-ClosingPrices!C136)/ClosingPrices!C136 -> -0.003216583274 | D135: =(ClosingPrices!D135-ClosingPrices!D136)/ClosingPrices!D136 -> 0.008590021692
A136: 2017-08-10 | B136: =(ClosingPrices!B136-ClosingPrices!B137)/ClosingPrices!B137 -> -0.03184473337 | C136: =(ClosingPrices!C136-ClosingPrices!C137)/ClosingPrices!C137 -> -0.01316717611 | D136: =(ClosingPrices!D136-ClosingPrices!D137)/ClosingPrices!D137 -> -0.006079944806
A137: 2017-08-09 | B137: =(ClosingPrices!B137-ClosingPrices!B138)/ClosingPrices!B138 -> 0.006129929221 | C137: =(ClosingPrices!C137-ClosingPrices!C138)/ClosingPrices!C138 -> -0.002930488806 | D137: =(ClosingPrices!D137-ClosingPrices!D138)/ClosingPrices!D138 -> -0.01582923103
A138: 2017-08-08 | B138: =(ClosingPrices!B138-ClosingPrices!B139)/ClosingPrices!B139 -> 0.008026500191 | C138: =(ClosingPrices!C138-ClosingPrices!C139)/ClosingPrices!C139 -> 0.00105609012 | D138: =(ClosingPrices!D138-ClosingPrices!D139)/ClosingPrices!D139 -> -0.003046200711
A139: 2017-08-07 | B139: =(ClosingPrices!B139-ClosingPrices!B140)/ClosingPrices!B140 -> 0.01546024969 | C139: =(ClosingPrices!C139-ClosingPrices!C140)/ClosingPrices!C140 -> -0.001406140145 | D139: =(ClosingPrices!D139-ClosingPrices!D140)/ClosingPrices!D140 -> 0.01060372841
A140: 2017-08-04 | B140: =(ClosingPrices!B140-ClosingPrices!B141)/ClosingPrices!B141 -> 0.005267264924 | C140: =(ClosingPrices!C140-ClosingPrices!C141)/ClosingPrices!C141 -> 0.005064185608 | D140: =(ClosingPrices!D140-ClosingPrices!D141)/ClosingPrices!D141 -> -0.002260995691
A141: 2017-08-03 | B141: =(ClosingPrices!B141-ClosingPrices!B142)/ClosingPrices!B142 -> -0.009978754909 | C141: =(ClosingPrices!C141-ClosingPrices!C142)/ClosingPrices!C142 -> 0.002834534073 | D141: =(ClosingPrices!D141-ClosingPrices!D142)/ClosingPrices!D142 -> 0.001238681018
A142: 2017-08-02 | B142: =(ClosingPrices!B142-ClosingPrices!B143)/ClosingPrices!B143 -> 0.0472626753 | C142: =(ClosingPrices!C142-ClosingPrices!C143)/ClosingPrices!C143 -> 0.0007091360359 | D142: =(ClosingPrices!D142-ClosingPrices!D143)/ClosingPrices!D143 -> -0.006197470074
A143: 2017-08-01 | B143: =(ClosingPrices!B143-ClosingPrices!B144)/ClosingPrices!B144 -> 0.008842334376 | C143: =(ClosingPrices!C143-ClosingPrices!C144)/ClosingPrices!C144 -> 0.0001182033097 | D143: =(ClosingPrices!D143-ClosingPrices!D144)/ClosingPrices!D144 -> -0.01249161636
A144: 2017-07-31 | B144: =(ClosingPrices!B144-ClosingPrices!B145)/ClosingPrices!B145 -> -0.005142779808 | C144: =(ClosingPrices!C144-ClosingPrices!C145)/ClosingPrices!C145 -> 0.004989308624 | D144: =(ClosingPrices!D144-ClosingPrices!D145)/ClosingPrices!D145 -> 0.004928598509
A145: 2017-07-28 | B145: =(ClosingPrices!B145-ClosingPrices!B146)/ClosingPrices!B146 -> -0.007055029228 | C145: =(ClosingPrices!C145-ClosingPrices!C146)/ClosingPrices!C146 -> 0.01141415355 | D145: =(ClosingPrices!D145-ClosingPrices!D146)/ClosingPrices!D146 -> 0.001138663968
A146: 2017-07-27 | B146: =(ClosingPrices!B146-ClosingPrices!B147)/ClosingPrices!B147 -> -0.0188542422 | C146: =(ClosingPrices!C146-ClosingPrices!C147)/ClosingPrices!C147 -> -0.01700720444 | D146: =(ClosingPrices!D146-ClosingPrices!D147)/ClosingPrices!D147 -> 0.03234794723
A147: 2017-07-26 | B147: =(ClosingPrices!B147-ClosingPrices!B148)/ClosingPrices!B148 -> 0.004702609617 | C147: =(ClosingPrices!C147-ClosingPrices!C148)/ClosingPrices!C148 -> -0.00129747582 | D147: =(ClosingPrices!D147-ClosingPrices!D148)/ClosingPrices!D148 -> 0.09878492155
A148: 2017-07-25 | B148: =(ClosingPrices!B148-ClosingPrices!B149)/ClosingPrices!B149 -> 0.004257017427 | C148: =(ClosingPrices!C148-ClosingPrices!C149)/ClosingPrices!C149 -> 0.004740459825 | D148: =(ClosingPrices!D148-ClosingPrices!D149)/ClosingPrices!D149 -> 0.001341253114
A149: 2017-07-24 | B149: =(ClosingPrices!B149-ClosingPrices!B150)/ClosingPrices!B150 -> 0.01211794803 | C149: =(ClosingPrices!C149-ClosingPrices!C150)/ClosingPrices!C150 -> -0.006826741996 | D149: =(ClosingPrices!D149-ClosingPrices!D150)/ClosingPrices!D150 -> 0.0001916443082
A150: 2017-07-21 | B150: =(ClosingPrices!B150-ClosingPrices!B151)/ClosingPrices!B151 -> -0.0004710315591 | C150: =(ClosingPrices!C150-ClosingPrices!C151)/ClosingPrices!C151 -> 0.00283286119 | D150: =(ClosingPrices!D150-ClosingPrices!D151)/ClosingPrices!D151 -> 0.008845280101
A151: 2017-07-20 | B151: =(ClosingPrices!B151-ClosingPrices!B152)/ClosingPrices!B152 -> -0.004488210075 | C151: =(ClosingPrices!C151-ClosingPrices!C152)/ClosingPrices!C152 -> -0.006799531067 | D151: =(ClosingPrices!D151-ClosingPrices!D152)/ClosingPrices!D152 -> -0.00284364758
A152: 2017-07-19 | B152: =(ClosingPrices!B152-ClosingPrices!B153)/ClosingPrices!B153 -> 0.006268958544 | C152: =(ClosingPrices!C152-ClosingPrices!C153)/ClosingPrices!C153 -> 0.004829779715 | D152: =(ClosingPrices!D152-ClosingPrices!D153)/ClosingPrices!D153 -> 0.01264092928
A153: 2017-07-18 | B153: =(ClosingPrices!B153-ClosingPrices!B154)/ClosingPrices!B154 -> 0.003449675325 | C153: =(ClosingPrices!C153-ClosingPrices!C154)/ClosingPrices!C154 -> 0.003546518501 | D153: =(ClosingPrices!D153-ClosingPrices!D154)/ClosingPrices!D154 -> -0.003598696688
A154: 2017-07-17 | B154: =(ClosingPrices!B154-ClosingPrices!B155)/ClosingPrices!B155 -> 0.003529731197 | C154: =(ClosingPrices!C154-ClosingPrices!C155)/ClosingPrices!C155 -> -0.0007088009451 | D154: =(ClosingPrices!D154-ClosingPrices!D155)/ClosingPrices!D155 -> 0.002339751401
A155: 2017-07-14 | B155: =(ClosingPrices!B155-ClosingPrices!B156)/ClosingPrices!B156 -> 0.008557540905 | C155: =(ClosingPrices!C155-ClosingPrices!C156)/ClosingPrices!C156 -> -0.001062072221 | D155: =(ClosingPrices!D155-ClosingPrices!D156)/ClosingPrices!D156 -> 0.01103937706
A156: 2017-07-13 | B156: =(ClosingPrices!B156-ClosingPrices!B157)/ClosingPrices!B157 -> 0.01395251978 | C156: =(ClosingPrices!C156-ClosingPrices!C157)/ClosingPrices!C157 -> 0.006413301663 | D156: =(ClosingPrices!D156-ClosingPrices!D157)/ClosingPrices!D157 -> -0.001033871603
A157: 2017-07-12 | B157: =(ClosingPrices!B157-ClosingPrices!B158)/ClosingPrices!B158 -> 0.001459854015 | C157: =(ClosingPrices!C157-ClosingPrices!C158)/ClosingPrices!C158 -> 0.007900406991 | D157: =(ClosingPrices!D157-ClosingPrices!D158)/ClosingPrices!D158 -> 0.0008376447401
A158: 2017-07-11 | B158: =(ClosingPrices!B158-ClosingPrices!B159)/ClosingPrices!B159 -> 0.003208034033 | C158: =(ClosingPrices!C158-ClosingPrices!C159)/ClosingPrices!C159 -> -0.001673040153 | D158: =(ClosingPrices!D158-ClosingPrices!D159)/ClosingPrices!D159 -> 0.01131154076
A159: 2017-07-10 | B159: =(ClosingPrices!B159-ClosingPrices!B160)/ClosingPrices!B160 -> 0.006104406399 | C159: =(ClosingPrices!C159-ClosingPrices!C160)/ClosingPrices!C160 -> -0.0003583801218 | D159: =(ClosingPrices!D159-ClosingPrices!D160)/ClosingPrices!D160 -> 0.007885088644
A160: 2017-07-07 | B160: =(ClosingPrices!B160-ClosingPrices!B161)/ClosingPrices!B161 -> 0.01013537458 | C160: =(ClosingPrices!C160-ClosingPrices!C161)/ClosingPrices!C161 -> 0.007098171319 | D160: =(ClosingPrices!D160-ClosingPrices!D161)/ClosingPrices!D161 -> 0.004388619855
A161: 2017-07-06 | B161: =(ClosingPrices!B161-ClosingPrices!B162)/ClosingPrices!B162 -> -0.00940813031 | C161: =(ClosingPrices!C161-ClosingPrices!C162)/ClosingPrices!C162 -> -0.01364661208 | D161: =(ClosingPrices!D161-ClosingPrices!D162)/ClosingPrices!D162 -> -0.001611603546
A162: 2017-07-05 | B162: =(ClosingPrices!B162-ClosingPrices!B163)/ClosingPrices!B163 -> 0.004088826225 | C162: =(ClosingPrices!C162-ClosingPrices!C163)/ClosingPrices!C163 -> 0.001307034221 | D162: =(ClosingPrices!D162-ClosingPrices!D163)/ClosingPrices!D163 -> 0.01622396233
A163: 2017-07-03 | B163: =(ClosingPrices!B163-ClosingPrices!B164)/ClosingPrices!B164 -> -0.003582466985 | C163: =(ClosingPrices!C163-ClosingPrices!C164)/ClosingPrices!C164 -> 0.0102028568 | D163: =(ClosingPrices!D163-ClosingPrices!D164)/ClosingPrices!D164 -> 0.004214421545
A164: 2017-06-30 | B164: =(ClosingPrices!B164-ClosingPrices!B165)/ClosingPrices!B165 -> 0.002323452792 | C164: =(ClosingPrices!C164-ClosingPrices!C165)/ClosingPrices!C165 -> 0.007376058041 | D164: =(ClosingPrices!D164-ClosingPrices!D165)/ClosingPrices!D165 -> 0.001492690961
A165: 2017-06-29 | B165: =(ClosingPrices!B165-ClosingPrices!B166)/ClosingPrices!B166 -> -0.01470690253 | C165: =(ClosingPrices!C165-ClosingPrices!C166)/ClosingPrices!C166 -> -0.004094412331 | D165: =(ClosingPrices!D165-ClosingPrices!D166)/ClosingPrices!D166 -> -0.01084466168
A166: 2017-06-28 | B166: =(ClosingPrices!B166-ClosingPrices!B167)/ClosingPrices!B167 -> 0.01456925676 | C166: =(ClosingPrices!C166-ClosingPrices!C167)/ClosingPrices!C167 -> 0.01071080818 | D166: =(ClosingPrices!D166-ClosingPrices!D167)/ClosingPrices!D167 -> 0.003679288671
A167: 2017-06-27 | B167: =(ClosingPrices!B167-ClosingPrices!B168)/ClosingPrices!B168 -> -0.01429166089 | C167: =(ClosingPrices!C167-ClosingPrices!C168)/ClosingPrices!C168 -> 0.001462701121 | D167: =(ClosingPrices!D167-ClosingPrices!D168)/ClosingPrices!D168 -> -0.005438097174
A168: 2017-06-26 | B168: =(ClosingPrices!B168-ClosingPrices!B169)/ClosingPrices!B169 -> -0.003181189488 | C168: =(ClosingPrices!C168-ClosingPrices!C169)/ClosingPrices!C169 -> 0.008977985488 | D168: =(ClosingPrices!D168-ClosingPrices!D169)/ClosingPrices!D169 -> -0.01110720209
A169: 2017-06-23 | B169: =(ClosingPrices!B169-ClosingPrices!B170)/ClosingPrices!B170 -> 0.004515456756 | C169: =(ClosingPrices!C169-ClosingPrices!C170)/ClosingPrices!C170 -> -0.0003688222277 | D169: =(ClosingPrices!D169-ClosingPrices!D170)/ClosingPrices!D170 -> 0.01396320644
A170: 2017-06-22 | B170: =(ClosingPrices!B170-ClosingPrices!B171)/ClosingPrices!B171 -> -0.00166447049 | C170: =(ClosingPrices!C170-ClosingPrices!C171)/ClosingPrices!C171 -> 0.00049200492 | D170: =(ClosingPrices!D170-ClosingPrices!D171)/ClosingPrices!D171 -> 0.001377832211
A171: 2017-06-21 | B171: =(ClosingPrices!B171-ClosingPrices!B172)/ClosingPrices!B172 -> 0.005929956746 | C171: =(ClosingPrices!C171-ClosingPrices!C172)/ClosingPrices!C172 -> -0.003676470588 | D171: =(ClosingPrices!D171-ClosingPrices!D172)/ClosingPrices!D172 -> 0.004202111305
A172: 2017-06-20 | B172: =(ClosingPrices!B172-ClosingPrices!B173)/ClosingPrices!B173 -> -0.009124844463 | C172: =(ClosingPrices!C172-ClosingPrices!C173)/ClosingPrices!C173 -> 0.007780659504 | D172: =(ClosingPrices!D172-ClosingPrices!D173)/ClosingPrices!D173 -> -0.00372696176
A173: 2017-06-19 | B173: =(ClosingPrices!B173-ClosingPrices!B174)/ClosingPrices!B174 -> 0.02865675887 | C173: =(ClosingPrices!C173-ClosingPrices!C174)/ClosingPrices!C174 -> 0.0052141527 | D173: =(ClosingPrices!D173-ClosingPrices!D174)/ClosingPrices!D174 -> 0.01340024834
A174: 2017-06-16 | B174: =(ClosingPrices!B174-ClosingPrices!B175)/ClosingPrices!B175 -> -0.01402229545 | C174: =(ClosingPrices!C174-ClosingPrices!C175)/ClosingPrices!C175 -> 0.00927202105 | D174: =(ClosingPrices!D174-ClosingPrices!D175)/ClosingPrices!D175 -> 0.005096203848
A175: 2017-06-15 | B175: =(ClosingPrices!B175-ClosingPrices!B176)/ClosingPrices!B176 -> -0.005993449021 | C175: =(ClosingPrices!C175-ClosingPrices!C176)/ClosingPrices!C176 -> -0.001626219665 | D175: =(ClosingPrices!D175-ClosingPrices!D176)/ClosingPrices!D176 -> 0.01595519865
A176: 2017-06-14 | B176: =(ClosingPrices!B176-ClosingPrices!B177)/ClosingPrices!B177 -> -0.009730848861 | C176: =(ClosingPrices!C176-ClosingPrices!C177)/ClosingPrices!C177 -> 0.003011292346 | D176: =(ClosingPrices!D176-ClosingPrices!D177)/ClosingPrices!D177 -> 0.006754959843
A177: 2017-06-13 | B177: =(ClosingPrices!B177-ClosingPrices!B178)/ClosingPrices!B178 -> 0.008 | C177: =(ClosingPrices!C177-ClosingPrices!C178)/ClosingPrices!C178 -> 0.005297679112 | D177: =(ClosingPrices!D177-ClosingPrices!D178)/ClosingPrices!D178 -> 0.005723761635
A178: 2017-06-12 | B178: =(ClosingPrices!B178-ClosingPrices!B179)/ClosingPrices!B179 -> -0.02390167719 | C178: =(ClosingPrices!C178-ClosingPrices!C179)/ClosingPrices!C179 -> -0.001762780156 | D178: =(ClosingPrices!D178-ClosingPrices!D179)/ClosingPrices!D179 -> -0.0001604535487
A179: 2017-06-09 | B179: =(ClosingPrices!B179-ClosingPrices!B180)/ClosingPrices!B180 -> -0.03877031525 | C179: =(ClosingPrices!C179-ClosingPrices!C180)/ClosingPrices!C180 -> 0.004553503668 | D179: =(ClosingPrices!D179-ClosingPrices!D180)/ClosingPrices!D180 -> 0.0005351313748
A180: 2017-06-08 | B180: =(ClosingPrices!B180-ClosingPrices!B181)/ClosingPrices!B181 -> 0.003537040676 | C180: =(ClosingPrices!C180-ClosingPrices!C181)/ClosingPrices!C181 -> 0.01384970505 | D180: =(ClosingPrices!D180-ClosingPrices!D181)/ClosingPrices!D181 -> 0.01703494068
A181: 2017-06-06 | B181: =(ClosingPrices!B181-ClosingPrices!B182)/ClosingPrices!B182 -> 0.003351735016 | C181: =(ClosingPrices!C181-ClosingPrices!C182)/ClosingPrices!C182 -> -0.001408631067 | D181: =(ClosingPrices!D181-ClosingPrices!D182)/ClosingPrices!D182 -> -0.01167231456
A182: 2017-06-05 | B182: =(ClosingPrices!B182-ClosingPrices!B183)/ClosingPrices!B183 -> -0.009761811792 | C182: =(ClosingPrices!C182-ClosingPrices!C183)/ClosingPrices!C183 -> 0.006055140428 | D182: =(ClosingPrices!D182-ClosingPrices!D183)/ClosingPrices!D183 -> -0.006731848053
A183: 2017-06-02 | B183: =(ClosingPrices!B183-ClosingPrices!B184)/ClosingPrices!B184 -> 0.01479329019 | C183: =(ClosingPrices!C183-ClosingPrices!C184)/ClosingPrices!C184 -> 0.0027128278 | D183: =(ClosingPrices!D183-ClosingPrices!D184)/ClosingPrices!D184 -> 0.01557243625
A184: 2017-06-01 | B184: =(ClosingPrices!B184-ClosingPrices!B185)/ClosingPrices!B185 -> 0.002781456954 | C184: =(ClosingPrices!C184-ClosingPrices!C185)/ClosingPrices!C185 -> 0.01734787751 | D184: =(ClosingPrices!D184-ClosingPrices!D185)/ClosingPrices!D185 -> -0.001679215644
A185: 2017-05-31 | B185: =(ClosingPrices!B185-ClosingPrices!B186)/ClosingPrices!B186 -> -0.005924950625 | C185: =(ClosingPrices!C185-ClosingPrices!C186)/ClosingPrices!C186 -> -0.001967471144 | D185: =(ClosingPrices!D185-ClosingPrices!D186)/ClosingPrices!D186 -> 0.004024582586
A186: 2017-05-30 | B186: =(ClosingPrices!B186-ClosingPrices!B187)/ClosingPrices!B187 -> 0.0003951527924 | C186: =(ClosingPrices!C186-ClosingPrices!C187)/ClosingPrices!C187 -> -0.004699738903 | D186: =(ClosingPrices!D186-ClosingPrices!D187)/ClosingPrices!D187 -> 0.001525137535
A187: 2017-05-26 | B187: =(ClosingPrices!B187-ClosingPrices!B188)/ClosingPrices!B188 -> -0.001709401709 | C187: =(ClosingPrices!C187-ClosingPrices!C188)/ClosingPrices!C188 -> 0.000261164795 | D187: =(ClosingPrices!D187-ClosingPrices!D188)/ClosingPrices!D188 -> -0.002553515158
A188: 2017-05-25 | B188: =(ClosingPrices!B188-ClosingPrices!B189)/ClosingPrices!B189 -> 0.003430531732 | C188: =(ClosingPrices!C188-ClosingPrices!C189)/ClosingPrices!C189 -> 0.00406450767 | D188: =(ClosingPrices!D188-ClosingPrices!D189)/ClosingPrices!D189 -> 0.009820595819
A189: 2017-05-24 | B189: =(ClosingPrices!B189-ClosingPrices!B190)/ClosingPrices!B190 -> -0.002959942117 | C189: =(ClosingPrices!C189-ClosingPrices!C190)/ClosingPrices!C190 -> -0.0009169504847 | D189: =(ClosingPrices!D189-ClosingPrices!D190)/ClosingPrices!D190 -> 0.009582364019
A190: 2017-05-23 | B190: =(ClosingPrices!B190-ClosingPrices!B191)/ClosingPrices!B191 -> -0.001248193404 | C190: =(ClosingPrices!C190-ClosingPrices!C191)/ClosingPrices!C191 -> 0.002758439511 | D190: =(ClosingPrices!D190-ClosingPrices!D191)/ClosingPrices!D191 -> -0.0009407337723
A191: 2017-05-22 | B191: =(ClosingPrices!B191-ClosingPrices!B192)/ClosingPrices!B192 -> 0.006080634501 | C191: =(ClosingPrices!C191-ClosingPrices!C192)/ClosingPrices!C192 -> 0.00236998025 | D191: =(ClosingPrices!D191-ClosingPrices!D192)/ClosingPrices!D192 -> 0.01608096711
A192: 2017-05-19 | B192: =(ClosingPrices!B192-ClosingPrices!B193)/ClosingPrices!B193 -> 0.003448733254 | C192: =(ClosingPrices!C192-ClosingPrices!C193)/ClosingPrices!C193 -> 0.005560704356 | D192: =(ClosingPrices!D192-ClosingPrices!D193)/ClosingPrices!D193 -> 0.0189641343
A193: 2017-05-18 | B193: =(ClosingPrices!B193-ClosingPrices!B194)/ClosingPrices!B194 -> 0.01521680582 | C193: =(ClosingPrices!C193-ClosingPrices!C194)/ClosingPrices!C194 -> 0.0001324152542 | D193: =(ClosingPrices!D193-ClosingPrices!D194)/ClosingPrices!D194 -> -0.007731665719
A194: 2017-05-17 | B194: =(ClosingPrices!B194-ClosingPrices!B195)/ClosingPrices!B195 -> -0.03357626236 | C194: =(ClosingPrices!C194-ClosingPrices!C195)/ClosingPrices!C195 -> -0.02252135646 | D194: =(ClosingPrices!D194-ClosingPrices!D195)/ClosingPrices!D195 -> -0.02147307521
A195: 2017-05-16 | B195: =(ClosingPrices!B195-ClosingPrices!B196)/ClosingPrices!B196 -> -0.001494379832 | C195: =(ClosingPrices!C195-ClosingPrices!C196)/ClosingPrices!C196 -> -0.002581977795 | D195: =(ClosingPrices!D195-ClosingPrices!D196)/ClosingPrices!D196 -> 0.001727500697
A196: 2017-05-15 | B196: =(ClosingPrices!B196-ClosingPrices!B197)/ClosingPrices!B197 -> -0.002527543746 | C196: =(ClosingPrices!C196-ClosingPrices!C197)/ClosingPrices!C197 -> 0.01083126713 | D196: =(ClosingPrices!D196-ClosingPrices!D197)/ClosingPrices!D197 -> -0.004714364947
A197: 2017-05-12 | B197: =(ClosingPrices!B197-ClosingPrices!B198)/ClosingPrices!B198 -> 0.01393087134 | C197: =(ClosingPrices!C197-ClosingPrices!C198)/ClosingPrices!C198 -> -0.00558006748 | D197: =(ClosingPrices!D197-ClosingPrices!D198)/ClosingPrices!D198 -> -0.003757321251
A198: 2017-05-11 | B198: =(ClosingPrices!B198-ClosingPrices!B199)/ClosingPrices!B199 -> 0.008682972095 | C198: =(ClosingPrices!C198-ClosingPrices!C199)/ClosingPrices!C199 -> -0.009256878375 | D198: =(ClosingPrices!D198-ClosingPrices!D199)/ClosingPrices!D199 -> 0.004161349387
A199: 2017-05-10 | B199: =(ClosingPrices!B199-ClosingPrices!B200)/ClosingPrices!B200 -> -0.004749653671 | C199: =(ClosingPrices!C199-ClosingPrices!C200)/ClosingPrices!C200 -> 0.002707232177 | D199: =(ClosingPrices!D199-ClosingPrices!D200)/ClosingPrices!D200 -> -0.01243835616
A200: 2017-05-09 | B200: =(ClosingPrices!B200-ClosingPrices!B201)/ClosingPrices!B201 -> 0.006373232424 | C200: =(ClosingPrices!C200-ClosingPrices!C201)/ClosingPrices!C201 -> 0.003622719627 | D200: =(ClosingPrices!D200-ClosingPrices!D201)/ClosingPrices!D201 -> 0.004789957606
... 50 more rows

Sheet SummaryMeasures
A1: Stock | B1: AAPL | C1: AXP | D1: BA
A2: Mean | B2: =AVERAGE(AAPL_returns) -> 0.001118801522 | C2: =AVERAGE(AXP_returns) -> 0.0009304039318 | D2: =AVERAGE(BA_returns) -> 0.002987727122
A3: Stdev | B3: =STDEV(AAPL_returns) -> 0.0122738272 | C3: =STDEV(AXP_returns) -> 0.01035300054 | D3: =STDEV(BA_returns) -> 0.01370786085
A5: Correlations | B5: AAPL | C5: AXP | D5: BA
A6: AAPL | B6: 1
A7: AXP | B7: =CORREL(AXP_returns,AAPL_returns) -> 0.4126070128 | C7: 1
A8: BA | B8: =CORREL(BA_returns,AAPL_returns) -> 0.3004307113 | C8: =CORREL(BA_returns,AXP_returns) -> 0.3746849423 | D8: 1

Sheet Model
A1: Portfolio selection model
A3: Stock | B3: AAPL | C3: AXP | D3: BA | E3: Sum
A4: Weights | B4: 0.000352615985 | C4: 0 | D4: 0.999647384 | E4: =SUM(Weights) -> 1
A5: Means | B5: =AVERAGE(AAPL_returns) -> 0.001118801522 | C5: =AVERAGE(AXP_returns) -> 0.0009304039318 | D5: =AVERAGE(BA_returns) -> 0.002987727122
A7: Covariances | B7: AAPL | C7: AXP | D7: BA
A8: AAPL | B8: =COVAR(AAPL_returns,AAPL_returns) -> 0.0001500418267 | C8: =COVAR(AAPL_returns,AXP_returns) -> 5.221979708e-05 | D8: =COVAR(AAPL_returns,BA_returns) -> 5.034384152e-05
A9: AXP | B9: =COVAR(AXP_returns,AAPL_returns) -> 5.221979708e-05 | C9: =COVAR(AXP_returns,AXP_returns) -> 0.0001067541598 | D9: =COVAR(AXP_returns,BA_returns) -> 5.296079524e-05
A10: BA | B10: =COVAR(BA_returns,AAPL_returns) -> 5.034384152e-05 | C10: =COVAR(BA_returns,AXP_returns) -> 5.296079524e-05 | D10: =COVAR(BA_returns,BA_returns) -> 0.0001871508088
A12: Constraint on mean return
B13: =SUMPRODUCT(Weights,Means) -> 0.002987068109 | C13: >= | D13: 0.002987727057
A15: Portfolio variance
B16: =MMULT(Weights,MMULT(Covar,TRANSPOSE(Weights))) -> 0.0001870543576
A18: Portfolio standard deviation
B19: =SQRT(PortfolioVariance) -> 0.0136767817

Sheet EfficientFrontier
A1: Efficient frontier
E2: Weights for these optimal portfolios
B3: PortStdev | C3: ReqdReturn | E3: AAPL | F3: AXP | G3: BA
B4: 0.008941700884 | C4: 0.0009304039413 | E4: 0.2874821928 | F4: 0.5057546629 | G4: 0.2067631443
B5: 0.008941700884 | C5: 0.001136136241 | E5: 0.2874821928 | F5: 0.5057546629 | G5: 0.2067631443
B6: 0.008941700884 | C6: 0.001341868541 | E6: 0.2874821928 | F6: 0.5057546629 | G6: 0.2067631443
B7: 0.008986562015 | C7: 0.001547600841 | E7: 0.2714045399 | F7: 0.4534491192 | G7: 0.2751463409
B8: 0.009217308873 | C8: 0.001753333141 | E8: 0.2473760259 | F8: 0.375277252 | G8: 0.3773467221
B9: 0.009630792462 | C9: 0.001959065441 | E9: 0.2233475121 | F9: 0.2971053848 | G9: 0.4795471031
B10: 0.01020482465 | C10: 0.002164797857 | E10: 0.1993189847 | F10: 0.2189334733 | G10: 0.581747542
B11: 0.01091410136 | C11: 0.002370530041 | E11: 0.1752904843 | F11: 0.1407616504 | G11: 0.6839478653
B12: 0.01173412478 | C12: 0.002576262457 | E12: 0.1512619572 | F12: 0.06258973871 | G12: 0.7861483041
B13: 0.01264504347 | C13: 0.002781994641 | E13: 0.110080616 | F13: 0 | G13: 0.889919384
B14: 0.0136767817 | C14: 0.002987727057 | E14: 0.000352615985 | F14: 0 | G14: 0.999647384
